bitfinex/quotes_SOLUSD_20220117
["timestamp","ask_amount","ask_price","bid_price","bid_amount"]
[1642455960366,10.9,137.66,137.56,38.43915947]
[1642455961365,8.7,137.65,137.51,23.8938]
[1642455961667,10.9062,137.61,137.51,23.8938]
[1642455961864,17.1672,137.61,137.51,23.8938]
[1642455962464,60.03102316,137.61,137.52,34.92961166]
[1642455963365,60.03102316,137.61,137.53,0.25]
[1642455963565,17.1672,137.61,137.53,0.25]
[1642455963765,10.9062,137.61,137.53,0.25]
[1642455964469,4.14696862,137.6,137.53,0.25]
[1642455964668,10.9043,137.59,137.53,11.1541]
[1642455966067,10.9043,137.59,137.52,34.92961166]
[1642455966670,10.9043,137.59,137.49,24.3175]
[1642455966867,17.9373,137.59,137.49,24.3175]
[1642455967169,26.6373,137.59,137.49,24.3175]
[1642455967367,26.6373,137.59,137.46,34.3535]
[1642455967368,10.9107,137.56,137.46,23.4439]
[1642455967569,49.49130582,137.55,137.46,68.23772768]
[1642455968369,10.9119,137.53,137.46,68.23772768]
[1642455973372,10.9119,137.53,137.46,79.14732768]
[1642455973773,10.9119,137.53,137.46,68.23772768]
[1642455974673,10.9082,137.54,137.47,0.25]
[1642455974875,36.3617,137.57,137.47,0.25]
[1642455975077,5.93425663,137.58,137.47,0.25]
[1642455975275,5.93425663,137.58,137.47,8.54197349]
[1642455975475,5.93425663,137.58,137.48,10.9077]
[1642455975875,5.93425663,137.6,137.5,36.33963233]
[1642455976075,5.93425663,137.6,137.5,66.84703233]
[1642455976276,5.93425663,137.6,137.51,0.25]
[1642455976978,4.14647485,137.62,137.51,0.25]
[1642455977278,4.14647485,137.62,137.51,24.7805]
[1642455977581,10.9032,137.6,137.51,35.684]
[1642455977779,10.9032,137.6,137.51,41.684]
[1642455978279,4.14647485,137.62,137.51,43.54797349]
[1642455978879,10.9011,137.63,137.52,80.59]
[1642455979079,5.93425663,137.64,137.55,10.9006]
[1642455979280,8.29280767,137.68,137.56,36.44365121]
[1642455979481,8.29280767,137.68,137.56,38.0476247]
[1642455979681,8.29280767,137.68,137.56,44.3076247]
[1642455979880,8.29280767,137.68,137.57,1.60397349]
[1642455980280,8.29280767,137.68,137.59,41.03049366]
[1642455980481,8.29280767,137.68,137.59,47.26849366]
[1642455980680,48.61010058,137.7,137.59,53.52849366]
[1642455980980,46.7316847,137.67,137.59,41.03049366]
[1642455981380,38.90907046,137.64,137.59,41.03049366]
[1642455981581,10.8996,137.65,137.59,41.03049366]
[1642455982684,10.902,137.63,137.59,41.03049366]
[1642455983181,10.902,137.63,137.56,10.9021]
[1642455983380,10.902,137.63,137.54,8.7]
[1642455983582,10.902,137.63,137.55,0.25]
[1642455984585,10.902,137.63,137.56,35.42524594]
[1642455986317,10.902,137.63,137.56,46.32714594]
[1642455986517,10.902,137.63,137.57,0.25]
[1642455986716,8.7,137.69,137.57,0.25]
[1642455987317,44.51624658,137.69,137.57,1.85397349]
[1642455987517,45.03,137.69,137.58,10.9002]
[1642455987722,8.7,137.69,137.58,19.5172]
[1642455987918,8.7,137.69,137.59,1.85397349]
[1642455988317,8.7,137.69,137.59,0.51]
[1642455988517,43.29387005,137.71,137.6,36.49634214]
[1642455988919,43.29387005,137.71,137.61,0.25]
[1642455989120,43.29387005,137.71,137.6,36.75634214]
[1642455989317,10.8964,137.7,137.62,10.8971]
[1642455990320,10.8964,137.7,137.63,39.483764]
[1642455990518,10.8964,137.7,137.64,10.8956]
[1642455991118,10.8946,137.71,137.64,10.8956]
[1642455992522,10.8946,137.71,137.66,10.8941]
[1642455992925,8.28893386,137.72,137.66,10.8941]
[1642455993122,8.28893386,137.72,137.67,40.44336063]
[1642455993321,8.28893386,137.72,137.67,40.45336063]
[1642455993526,1.42560716,137.74,137.68,50.0]
[1642455993723,10.18900993,137.77,137.68,61.1422]
[1642455993923,8.28715776,137.77,137.68,61.1422]
[1642455994524,10.8906,137.76,137.68,61.1422]
[1642455995826,41.65452541,137.75,137.68,11.1422]
[1642455996026,10.8906,137.76,137.68,10.8922]
[1642455996228,10.8906,137.76,137.67,51.08606063]
[1642455996427,10.8906,137.76,137.67,40.19336063]
[1642455997030,51.30507635,137.76,137.67,40.19336063]
[1642455997832,1.75619958,137.75,137.63,8.7]
[1642455998032,10.8977,137.71,137.6,8.7]
[1642455998832,36.01974015,137.7,137.6,46.81394632]
[1642455999032,10.8999,137.67,137.6,46.81394632]
[1642455999233,39.62099957,137.66,137.6,46.81394632]
[1642455999632,6.547,137.7,137.6,46.81394632]
[1642455999831,36.3329,137.68,137.6,46.81394632]
[1642456000732,10.8991,137.67,137.6,46.81394632]
[1642456000935,16.4281,137.67,137.59,46.0204]
[1642456001134,16.4281,137.67,137.53,8.7]
[1642456001532,25.1281,137.67,137.53,8.7]
[1642456001932,37.95416864,137.66,137.54,41.6836476]
[1642456002133,10.904,137.63,137.54,41.6836476]
[1642456002334,39.32277168,137.62,137.55,0.25]
[1642456002733,39.32277168,137.62,137.54,41.6836476]
[1642456003337,49.63819689,137.59,137.54,41.6836476]
[1642456004542,47.75819689,137.59,137.54,41.6836476]
[1642456004936,8.7,137.63,137.54,41.6836476]
[1642456005537,10.9061,137.58,137.54,41.6836476]
[1642456006438,8.7,137.63,137.54,41.6836476]
[1642456007438,10.9037,137.61,137.54,41.6836476]
[1642456008038,36.62457322,137.6,137.54,41.6836476]
[1642456008239,36.62457322,137.6,137.5,23.378]
[1642456008441,10.9053,137.59,137.5,23.378]
[1642456009240,10.9053,137.59,137.51,38.04252453]
[1642456009441,19.6053,137.59,137.51,38.04252453]
[1642456009742,71.89,137.58,137.51,38.04252453]
[1642456009941,43.36127871,137.57,137.51,38.04252453]
[1642456010143,10.91,137.56,137.51,38.04252453]
[1642456011443,10.91,137.56,137.45,23.9651]
[1642456011842,71.89,137.55,137.46,0.25]
[1642456012044,10.9112,137.53,137.46,0.25]
[1642456012452,47.02203283,137.53,137.46,36.69330072]
[1642456012643,10.9112,137.53,137.46,36.69330072]
[1642456013645,36.94975427,137.52,137.46,36.69330072]
[1642456013845,10.9107,137.51,137.46,36.69330072]
[1642456015544,10.9107,137.51,137.46,42.69330072]
[1642456017746,36.3616,137.57,137.46,55.21101052]
[1642456017945,8.7,137.59,137.46,55.21101052]
[1642456018145,8.7,137.59,137.47,47.6177]
[1642456018347,8.7,137.59,137.48,0.25]
[1642456018545,39.6686722,137.58,137.47,49.2260098]
[1642456018746,35.06478416,137.54,137.47,47.6177]
[1642456020854,36.3654,137.56,137.47,47.6177]
[1642456021756,45.01154107,137.52,137.46,36.44330072]
[1642456021954,45.01154107,137.52,137.43,48.9843]
[1642456022354,71.89,137.51,137.43,48.9843]
[1642456022554,71.89,137.51,137.39,145.1372098]
[1642456022756,10.9123,137.5,137.39,23.1289]
[1642456022958,39.35106393,137.49,137.4,40.18565376]
[1642456024357,49.18483183,137.46,137.4,40.18565376]
[1642456025155,80.59,137.51,137.4,40.18565376]
[1642456025555,10.9172,137.45,137.4,40.18565376]
[1642456026485,36.3828,137.5,137.41,0.25]
[1642456026685,8.7,137.51,137.41,0.25]
[1642456026886,8.7,137.51,137.41,1.6083098]
[1642456027284,37.19710655,137.5,137.4,46.44565376]
[1642456027483,37.19710655,137.5,137.4,40.44565376]
[1642456028084,37.19710655,137.5,137.41,0.25]
[1642456028690,10.9131,137.48,137.41,11.1631]
[1642456029785,37.19710655,137.5,137.41,11.1631]
[1642456029786,10.9115,137.5,137.41,12.7714098]
[1642456029990,8.7,137.57,137.41,93.6214098]
[1642456030186,8.7,137.57,137.41,99.6214098]
[1642456030786,46.22876269,137.56,137.41,99.6214098]
[1642456031187,46.22876269,137.56,137.42,24.8983]
[1642456031387,10.9097,137.53,137.46,10.909]
[1642456031587,10.9097,137.53,137.47,35.39415297]
[1642456032686,10.9097,137.53,137.47,46.30305297]
[1642456034087,10.9082,137.54,137.47,46.30305297]
[1642456034287,8.7,137.57,137.48,0.25]
[1642456034493,36.3597,137.58,137.49,10.9072]
[1642456034696,10.0328784,137.62,137.49,10.9072]
[1642456034888,10.0328784,137.62,137.49,17.1672]
[1642456035288,10.9051,137.59,137.5,49.47360498]
[1642456035489,45.41134081,137.58,137.5,49.47360498]
[1642456036290,10.9078,137.56,137.48,46.2012]
[1642456037291,44.04587637,137.55,137.48,39.69569995]
[1642456037791,10.908,137.54,137.48,39.69569995]
[1642456038195,10.908,137.54,137.46,8.7]
[1642456038592,10.908,137.54,137.46,19.6097]
[1642456038795,19.195,137.54,137.45,47.7302]
[1642456038995,19.195,137.54,137.43,23.1296]
[1642456039198,10.9152,137.5,137.42,38.04227856]
[1642456039393,16.4532,137.5,137.41,6.0]
[1642456039594,16.4532,137.5,137.39,111.7]
[1642456040395,42.4338433,137.49,137.4,46.99819869]
[1642456040594,37.90625092,137.46,137.4,46.99819869]
[1642456042197,37.90625092,137.46,137.39,122.6152]
[1642456042597,10.9152,137.45,137.39,122.6152]
[1642456043494,19.7772,137.45,137.39,111.7]
[1642456043695,19.7772,137.45,137.36,53.56172059]
[1642456044098,71.89,137.44,137.36,53.56172059]
[1642456044297,10.9204,137.42,137.36,6.22272059]
[1642456044498,47.0596476,137.41,137.36,6.22272059]
[1642456044930,47.0596476,137.41,137.37,4.14941416]
[1642456045999,10.9206,137.4,137.37,4.14941416]
[1642456046198,6.06439994,137.39,137.34,6.22272059]
[1642456046402,71.89,137.38,137.34,6.22272059]
[1642456046705,71.89,137.38,137.28,10.37336189]
[1642456046901,44.3346778,137.37,137.28,10.37336189]
[1642456047100,10.9266,137.35,137.32,6.22522516]
[1642456047304,17.3616,137.35,137.32,6.22522516]
[1642456047502,6.06439994,137.34,137.32,2.516e-05]
[1642456047704,6.06439994,137.34,137.25,10.37336189]
[1642456047903,14.76439994,137.34,137.25,10.37336189]
[1642456048303,10.9279,137.32,137.25,10.37336189]
[1642456048503,10.9279,137.32,137.26,38.78941203]
[1642456049907,57.95769671,137.32,137.26,38.78941203]
[1642456052536,10.9279,137.32,137.26,38.78941203]
[1642456052735,10.9279,137.32,137.26,44.78941203]
[1642456053134,10.9279,137.32,137.22,57.7168098]
[1642456053536,10.9279,137.32,137.22,47.4085]
[1642456054036,19.6279,137.32,137.22,47.4085]
[1642456054234,40.22860584,137.31,137.22,86.21114131]
[1642456054434,38.94479074,137.28,137.22,86.21114131]
[1642456054636,47.71179074,137.28,137.22,86.21114131]
[1642456055534,10.93,137.27,137.22,47.4085]
[1642456055736,10.93,137.27,137.16,8.7]
[1642456055936,10.93,137.27,137.16,54.8901]
[1642456056536,10.93,137.27,137.17,37.70535828]
[1642456056937,10.93,137.27,137.17,43.70535828]
[1642456057136,10.93,137.27,137.17,52.01439903]
[1642456057838,10.93,137.27,137.18,0.25]
[1642456059739,10.93,137.27,137.17,293.70535828]
[1642456059937,8.7,137.26,137.17,293.70535828]
[1642456060137,10.9357,137.24,137.23,2.07724708]
[1642456060741,10.9357,137.24,137.17,250.0]
[1642456060742,67.0,137.23,137.17,250.0]
[1642456060943,80.59,137.22,137.17,250.0]
[1642456061145,8.7,137.22,137.17,250.0]
[1642456061343,19.6406,137.22,137.17,250.0]
[1642456061543,21.39679958,137.22,137.17,177.0614]
[1642456061745,46.33987199,137.21,137.17,177.0614]
[1642456061944,55.03987199,137.21,137.17,177.0614]
[1642456062543,54.03987199,137.21,137.17,177.0614]
[1642456062745,10.9402,137.2,137.17,177.0614]
[1642456062945,6.06439994,137.19,137.17,177.0614]
[1642456063544,8.7,137.23,137.17,177.0614]
[1642456063744,10.9343,137.21,137.18,49.27940371]
[1642456064144,6.06439994,137.2,137.18,49.27940371]
[1642456064546,8.7,137.23,137.18,49.27940371]
[1642456064746,10.9295,137.27,137.18,54.72940371]
[1642456064944,10.9295,137.27,137.19,0.25]
[1642456065144,37.81228014,137.31,137.19,0.25]
[1642456065344,37.81228014,137.31,137.19,49.5209]
[1642456065546,1.38168014,137.31,137.22,38.50490092]
[1642456066245,1.38168014,137.31,137.22,44.50490092]
[1642456066844,12.30798014,137.31,137.24,10.9263]
[1642456067043,12.30798014,137.31,137.25,48.05158926]
[1642456067244,8.7,137.35,137.26,0.25]
[1642456067944,8.7,137.35,137.27,10.924]
[1642456068147,8.7,137.35,137.28,46.02354176]
[1642456068546,10.9225,137.36,137.28,46.02354176]
[1642456069350,8.7,137.39,137.3,10.9225]
[1642456069549,10.9217,137.37,137.3,10.9225]
[1642456069948,10.9217,137.37,137.31,40.38541066]
[1642456070949,10.9217,137.37,137.31,51.30701066]
[1642456071453,10.9208,137.38,137.31,51.30701066]
[1642456071651,38.05584236,137.42,137.31,51.30701066]
[1642456071851,35.85,137.5,137.36,10.9174]
[1642456071852,8.7,137.46,137.36,10.9174]
[1642456072352,35.609265,137.45,137.37,45.05023346]
[1642456072551,10.9174,137.44,137.32,48.255]
[1642456072751,19.6174,137.44,137.32,48.005]
[1642456072951,19.6174,137.44,137.34,10.9189]
[1642456073551,19.6174,137.44,137.35,42.22679645]
[1642456074853,19.6174,137.44,137.35,53.14549645]
[1642456075856,19.6174,137.44,137.35,59.14549645]
[1642456076456,19.6174,137.44,137.35,53.14549645]
[1642456076857,19.6174,137.44,137.35,10.9187]
[1642456077057,1.75619958,137.43,137.34,10.9195]
[1642456077258,1.75619958,137.43,137.32,48.005]
[1642456077457,10.9203,137.4,137.32,48.005]
[1642456077658,36.4008,137.43,137.32,48.005]
[1642456077858,37.36546458,137.45,137.33,46.85835825]
[1642456078058,35.609265,137.45,137.33,46.85835825]
[1642456078462,37.36546458,137.45,137.33,46.85835825]
[1642456078689,10.9178,137.42,137.33,46.85835825]
[1642456078861,48.03149638,137.41,137.33,57.77865825]
[1642456079564,48.03149638,137.41,137.33,46.85835825]
[1642456079764,10.9201,137.39,137.33,46.85835825]
[1642456079970,48.16104402,137.38,137.32,48.005]
[1642456080164,48.16104402,137.38,137.23,8.7]
[1642456080367,48.16104402,137.38,137.24,48.0197]
[1642456080564,10.45619958,137.43,137.25,8.7]
[1642456080766,10.9202,137.39,137.27,10.9244]
[1642456080970,10.9202,137.39,137.28,8.7]
[1642456081167,36.4026,137.42,137.28,8.7]
[1642456081168,36.4026,137.42,137.28,8.95]
[1642456081369,36.4026,137.42,137.29,48.6501]
[1642456081668,77.22818553,137.42,137.3,39.99219626]
[1642456081867,77.22818553,137.42,137.31,23.9434]
[1642456082267,8.7,137.43,137.31,35.1229]
[1642456082468,8.7,137.46,137.31,41.1229]
[1642456082670,8.7,137.47,137.32,71.89]
[1642456082867,8.7,137.47,137.33,23.8994]
[1642456083271,3.92190851,137.45,137.34,41.87722143]
[1642456083573,3.92190851,137.45,137.34,65.33662143]
[1642456083769,3.92190851,137.45,137.35,0.25]
[1642456084169,3.92190851,137.45,137.36,10.9171]
[1642456084369,11.75495857,137.51,137.37,0.25]
[1642456084570,11.75495857,137.51,137.37,25.1781]
[1642456084969,11.75495857,137.51,137.38,47.07152691]
[1642456085175,39.11801451,137.52,137.42,71.89]
[1642456085369,39.11801451,137.52,137.42,79.83]
[1642456085570,3.96496497,137.5,137.42,79.83]
[1642456085769,3.96496497,137.5,137.45,71.89]
[1642456085970,3.96496497,137.5,137.45,79.446]
[1642456086199,3.96496497,137.5,137.45,81.05849119]
[1642456086569,3.96496497,137.5,137.45,91.96849119]
[1642456086771,14.87266497,137.55,137.45,91.96849119]
[1642456087170,3.96496497,137.55,137.46,0.25]
[1642456087575,3.96496497,137.55,137.47,1.61249119]
[1642456087773,0.91128764,137.57,137.47,1.61249119]
[1642456087978,39.94282702,137.57,137.48,48.7599209]
[1642456088375,10.9067,137.56,137.48,48.7599209]
[1642456088575,10.9067,137.56,137.46,47.8194]
[1642456088978,15.05499788,137.56,137.46,47.8194]
[1642456089176,25.51119746,137.56,137.41,8.7]
[1642456089377,25.51119746,137.56,137.42,10.913]
[1642456089575,25.51119746,137.56,137.43,40.70966731]
[1642456089775,25.51119746,137.56,137.43,89.17906731]
[1642456089978,10.9126,137.52,137.43,89.17906731]
[1642456090178,44.63128644,137.51,137.43,89.17906731]
[1642456090379,44.63128644,137.51,137.43,100.09126731]
[1642456091383,48.77958432,137.51,137.43,100.09126731]
[1642456091580,10.9116,137.5,137.43,100.09126731]
[1642456091981,10.9116,137.5,137.44,11.1609]
[1642456092682,36.3678,137.55,137.44,11.1609]
[1642456092881,0.91128764,137.57,137.44,19.2849]
[1642456093081,0.91128764,137.57,137.45,24.3096]
[1642456093281,0.91128764,137.57,137.47,10.9091]
[1642456093482,47.78102715,137.56,137.48,42.96356619]
[1642456093701,10.9091,137.54,137.48,42.96356619]
[1642456095316,49.07304528,137.53,137.46,10.9093]
[1642456096013,49.07304528,137.53,137.45,24.3096]
[1642456096213,49.07304528,137.53,137.46,38.38761698]
[1642456098412,49.07304528,137.53,137.46,49.29751698]
[1642456099813,48.71369683,137.53,137.46,49.29751698]
[1642456100714,10.9083,137.54,137.46,49.29751698]
[1642456100917,0.91128764,137.57,137.47,72.14]
[1642456101118,0.91128764,137.57,137.49,10.907]
[1642456101722,45.0226223,137.56,137.49,47.46534338]
[1642456102521,10.9075,137.55,137.49,47.46534338]
[1642456103120,45.0226223,137.56,137.49,47.46534338]
[1642456104324,45.0226223,137.56,137.5,0.25]
[1642456104522,11.81718764,137.57,137.51,10.9059]
[1642456105324,0.91128764,137.57,137.52,0.25]
[1642456105624,0.91128764,137.57,137.53,82.7927]
[1642456105827,0.91128764,137.57,137.53,83.0527]
[1642456106023,0.91128764,137.57,137.53,11.1627]
[1642456106423,0.91128764,137.57,137.53,17.1627]
[1642456106827,0.91128764,137.57,137.54,0.25]
[1642456107026,10.9019,137.62,137.56,10.9016]
[1642456107227,10.9019,137.62,137.56,16.2946]
[1642456107629,10.9019,137.62,137.57,49.20307434]
[1642456108028,45.0355,137.67,137.57,60.10447434]
[1642456108228,1.52805278,137.68,137.57,138.27947434]
[1642456108629,1.52805278,137.68,137.58,0.25]
[1642456109028,42.94298436,137.67,137.58,23.5123]
[1642456109430,42.94298436,137.67,137.58,29.7723]
[1642456109632,53.84068436,137.67,137.62,35.26242321]
[1642456110129,53.84068436,137.67,137.62,41.17242321]
[1642456110330,6.01121849,137.73,137.62,41.43242321]
[1642456110532,6.01121849,137.73,137.63,72.14]
[1642456110831,16.90491849,137.73,137.66,10.8941]
[1642456111030,16.90491849,137.73,137.66,19.8221]
[1642456111431,16.90491849,137.73,137.67,36.81816037]
[1642456111629,16.90491849,137.73,137.66,19.8221]
[1642456111630,10.8937,137.73,137.66,8.928]
[1642456112032,10.8937,137.73,137.61,36.3176]
[1642456112230,10.8937,137.73,137.62,47.0498]
[1642456112457,82.7837,137.73,137.62,47.0498]
[1642456112831,84.53989958,137.73,137.62,47.0498]
[1642456113433,84.53989958,137.73,137.61,57.4043811]
[1642456113633,84.53989958,137.73,137.61,46.5062811]
[1642456113832,36.31453596,137.71,137.61,46.5062811]
[1642456114035,10.8981,137.69,137.61,46.5062811]
[1642456114234,42.77400253,137.68,137.61,46.5062811]
[1642456114833,42.77400253,137.68,137.59,8.7]
[1642456114834,42.77400253,137.68,137.55,24.2553]
[1642456115135,42.77400253,137.68,137.55,32.9553]
[1642456115333,10.8981,137.67,137.55,24.2553]
[1642456115733,10.8981,137.67,137.56,47.33117496]
[1642456116237,14.9659401,137.67,137.56,47.33117496]
[1642456116833,14.9659401,137.67,137.55,24.2553]
[1642456117033,8.7,137.66,137.54,22.9408]
[1642456117234,8.7,137.66,137.42,10.7154]
[1642456117235,8.7,137.66,137.49,56.5524]
[1642456117432,10.9055,137.61,137.49,56.5524]
[1642456117632,10.9055,137.61,137.5,10.9062]
[1642456117832,41.65475152,137.6,137.51,45.2480248]
[1642456118433,10.9071,137.58,137.51,45.2480248]
[1642456118635,48.77363136,137.57,137.51,45.2480248]
[1642456118833,10.9071,137.58,137.51,45.2480248]
[1642456119435,4.0678401,137.57,137.51,45.2480248]
[1642456120636,14.9740401,137.57,137.51,45.2480248]
[1642456120836,10.9062,137.57,137.51,45.2480248]
[1642456124748,57.23948131,137.56,137.51,45.2480248]
[1642456124952,10.9064,137.56,137.51,45.2480248]
[1642456126050,10.9057,137.57,137.51,56.1535248]
[1642456126250,10.9057,137.57,137.51,128.0435248]
[1642456126552,6.01121849,137.61,137.52,0.25]
[1642456126855,6.01121849,137.61,137.53,1.61249119]
[1642456127050,6.01121849,137.61,137.54,19.6033]
[1642456127251,6.01121849,137.61,137.55,34.86910136]
[1642456127470,6.01121849,137.61,137.56,71.89]
[1642456127670,6.01121849,137.61,137.56,73.74856193]
[1642456127870,4.14560199,137.64,137.56,80.00856193]
[1642456128069,4.14560199,137.64,137.57,46.8572]
[1642456128269,4.14560199,137.64,137.58,0.25]
[1642456128471,4.14560199,137.64,137.59,10.8983]
[1642456128674,4.14560199,137.64,137.6,42.79857543]
[1642456128870,4.14560199,137.64,137.6,43.04857543]
[1642456129075,6.01121849,137.66,137.6,43.04857543]
[1642456129275,6.01121849,137.66,137.6,49.04857543]
[1642456129872,10.898,137.67,137.6,53.94657543]
[1642456130078,40.3037662,137.66,137.6,53.94657543]
[1642456130273,40.3037662,137.66,137.59,23.9787]
[1642456130675,40.3037662,137.66,137.57,22.5691]
[1642456130874,4.14560199,137.65,137.57,28.5691]
[1642456131075,10.9,137.64,137.57,22.5691]
[1642456131275,10.9,137.64,137.58,42.05476615]
[1642456131976,10.9,137.64,137.58,52.95466615]
[1642456132177,15.04500199,137.65,137.58,52.95466615]
[1642456132777,15.04500199,137.65,137.58,58.95466615]
[1642456132979,4.14560199,137.63,137.58,52.95466615]
[1642456133177,15.04630199,137.63,137.58,42.05476615]
[1642456133580,56.51429944,137.63,137.58,42.05476615]
[1642456133783,52.36869745,137.63,137.58,42.05476615]
[1642456134778,10.9007,137.63,137.58,42.05476615]
[1642456135579,10.9001,137.64,137.58,42.05476615]
[1642456135779,4.14593324,137.62,137.58,52.95456615]
[1642456136784,4.14568507,137.63,137.58,52.95456615]
[1642456137181,4.14568507,137.63,137.58,59.21456615]
[1642456137783,4.14568507,137.63,137.58,131.10456615]
[1642456138084,42.84981467,137.62,137.57,22.5691]
[1642456138285,42.84981467,137.62,137.49,55.9839]
[1642456138683,42.84981467,137.62,137.49,66.01408947]
[1642456138881,42.84981467,137.62,137.49,61.6226514]
[1642456139082,42.84981467,137.62,137.5,49.32138593]
[1642456139282,42.84981467,137.62,137.51,71.89]
[1642456139482,10.9032,137.61,137.53,36.27772611]
[1642456139683,45.69985751,137.59,137.53,36.27772611]
[1642456140384,4.14568507,137.59,137.53,47.18092611]
[1642456140590,4.14568507,137.6,137.54,71.89]
[1642456140885,4.14568507,137.6,137.54,86.59]
[1642456141086,4.14568507,137.6,137.54,14.7]
[1642456141291,4.14568507,137.6,137.51,33.52196193]
[1642456141292,39.27101163,137.59,137.51,33.52196193]
[1642456141487,50.17511163,137.59,137.51,23.2134]
[1642456142089,50.17511163,137.59,137.49,24.1342]
[1642456142393,50.17511163,137.59,137.5,41.61843539]
[1642456142789,8.29184342,137.58,137.5,41.61843539]
[1642456143194,19.19654342,137.58,137.5,41.61843539]
[1642456143490,8.29184342,137.58,137.5,41.61843539]
[1642456143891,4.14568507,137.57,137.51,71.89]
[1642456144091,4.14568507,137.57,137.51,87.248]
[1642456144290,4.14568507,137.57,137.51,95.11656193]
[1642456144990,44.56603294,137.57,137.52,10.9002]
[1642456145192,44.56603294,137.57,137.5,41.61843539]
[1642456145794,55.47143294,137.57,137.5,41.61843539]
[1642456146218,44.56603294,137.57,137.5,41.61843539]
[1642456146998,44.56603294,137.57,137.5,52.52353539]
[1642456148194,4.14568507,137.57,137.5,52.52353539]
[1642456148399,4.14568507,137.57,137.5,58.52353539]
[1642456148598,4.14568507,137.57,137.52,10.9016]
[1642456148798,4.14568507,137.57,137.53,0.25]
[1642456148998,8.29295989,137.58,137.53,72.14]
[1642456149199,8.29295989,137.58,137.53,0.25]
[1642456149400,8.29295989,137.58,137.53,37.31087139]
[1642456149600,8.29295989,137.58,137.54,10.9013]
[1642456150099,4.14568507,137.64,137.53,37.31087139]
[1642456150299,4.14568507,137.64,137.53,37.57087139]
[1642456150503,10.9022,137.61,137.53,37.31087139]
[1642456150701,10.9022,137.61,137.51,10.9041]
[1642456150903,10.9022,137.61,137.49,30.1342]
[1642456151402,10.9022,137.61,137.49,24.1342]
[1642456151603,47.09376373,137.6,137.5,36.11170572]
[1642456152002,57.99736373,137.6,137.5,47.01640572]
[1642456153724,57.99736373,137.6,137.5,70.09060572]
[1642456155227,10.9036,137.6,137.5,70.09060572]
[1642456155429,10.9036,137.6,137.52,10.9028]
[1642456155628,10.9036,137.6,137.52,82.7928]
[1642456155827,10.9024,137.61,137.53,0.25]
[1642456156231,10.9024,137.61,137.53,38.07876936]
[1642456156629,35.00781694,137.62,137.53,54.99116936]
[1642456157029,10.9016,137.62,137.53,54.99116936]
[1642456157232,10.9016,137.62,137.54,71.89]
[1642456157529,4.14568507,137.64,137.54,78.766]
[1642456157728,4.14568507,137.64,137.55,10.9008]
[1642456157928,4.14568507,137.64,137.57,39.83385255]
[1642456158128,4.14568507,137.64,137.57,45.80785255]
[1642456158327,4.14568507,137.64,137.57,46.06785255]
[1642456158529,49.59594915,137.64,137.57,46.06785255]
[1642456158730,4.14568507,137.64,137.57,46.06785255]
[1642456159127,8.27206505,137.66,137.57,46.06785255]
[1642456159328,8.27206505,137.66,137.57,40.09385255]
[1642456159527,10.9,137.64,137.57,40.09385255]
[1642456160131,10.9,137.64,137.57,111.98385255]
[1642456160330,4.14568507,137.66,137.57,111.98385255]
[1642456160529,4.14568507,137.66,137.57,117.98385255]
[1642456161129,37.22370807,137.65,137.57,117.98385255]
[1642456161533,46.62300807,137.65,137.57,39.83385255]
[1642456161936,46.62300807,137.65,137.55,46.3313]
[1642456162237,55.32300807,137.65,137.55,46.3313]
[1642456162836,55.32300807,137.65,137.55,93.23774047]
[1642456163237,38.8793743,137.59,137.55,93.23774047]
[1642456163436,38.8793743,137.59,137.55,46.90644047]
[1642456163636,38.8793743,137.59,137.52,82.7927]
[1642456164338,4.14568507,137.6,137.52,88.7927]
[1642456164539,4.14568507,137.6,137.52,82.7927]
[1642456164738,4.14568507,137.6,137.52,88.7927]
[1642456165138,4.14568507,137.6,137.52,82.7927]
[1642456165339,4.14568507,137.6,137.54,71.89]
[1642456165548,4.14568507,137.6,137.55,10.8995]
[1642456165840,4.14568507,137.6,137.56,71.89]
[1642456166140,8.29189512,137.62,137.56,71.89]
[1642456166339,8.29189512,137.62,137.57,0.25]
[1642456166547,8.29189512,137.62,137.57,37.50319022]
[1642456166741,8.29189512,137.62,137.58,71.89]